[Event "XIII Mediterranean Championship 2023"]
[Site "Castell-Platja d Aro"]
[Date "2023.11.09"]
[Round "7.21"]
[White "Canigueral Salvado, Jaume"]
[Black "Galvan Cipriani, Viviana"]
[Result "1-0"]
[ECO "B43"]
[WhiteElo "1853"]
[BlackElo "2077"]
[Annotator "NA RC"]
[PlyCount "101"]
[EventDate "2023.10.26"]
[EventType "swiss"]
[EventCountry "ESP"]
[SourceTitle "playchess.com"]
[Source "ChessBase"]
[SourceQuality "1"]
[TimeControl "5400+30"]

1. e4 {[%emt 1:31:00]} c5 {[%emt 1:31:00]} 2. Nf3 {[%emt 0:00:30]} e6 {[%emt 0:00:30]} 3. d4 {[%emt 0:00:30]} cxd4 {[%emt 0:00:30]} 4. Nxd4 {[%emt 0:00:30]} a6 {[%emt 0:00:30]} 5. a3 {[%emt 0:00:30]} Nf6 {[%emt 0:00:30]} 6. Nc3 {[%emt 0:00:30]} Qc7 {[%emt 0:00:30]} 7. Be3 {[%emt 0:00:30]} b6 {[%emt 0:00:30]} 8. Bd3 {[%emt 0:00:30]} Bb7 {[%emt 0:00:30]} 9. O-O {[%emt 0:00:30]} d6 {[%emt 0:00:30]} 10. Qe2 {[%emt 0:00:30]} Nbd7 {[%emt 0:00:30]} 11. Nb3 {[%emt 0:00:30]} Be7 {[%emt 0:00:30]} 12. Rad1 {[%emt 0:00:30]} O-O {[%emt 0:00:30]} 13. Bf4 {[%emt 0:00:30]} Ne5 {[%emt 0:00:30]} 14. h3 {[%emt 0:00:30]} Rfd8 {[%emt 0:00:30]} 15. Bg3 {[%emt 0:00:30]} b5 {[%emt 0:00:30]} 16. f4 {[%emt 0:00:30]} Nc4 {[%emt 0:00:30]} 17. Bxc4 {[%emt 0:00:30]} bxc4 {[%emt 0:00:30]} 18. Nd2 {[%emt 0:00:30]} Qb6+ {[%emt 0:00:30]} 19. Kh1 {[%emt 0:00:30]} Qxb2 {[%emt 0:00:30]} 20. Rb1 {[%emt 0:00:30]} Qxc3 {[%emt 0:00:30]} 21. Rxb7 {[%emt 0:00:30]} Bf8 {[%emt 0:00:30]} 22. Bh4 {[%emt 0:00:30]} Rdc8 {[%emt 0:00:30]} 23. e5 {[%emt 0:00:30]} Nd5 {[%emt 0:00:30]} 24. Ne4 {[%emt 0:00:30]} Qe3 {[%emt 0:00:30]} 25. Nf6+ {[%emt 0:00:30]} Kh8 {[%emt 0:00:30]} 26. Qh5 {[%emt 0:00:30]} Nxf6 {[%emt 0:00:30]} 27. Bxf6 {[%emt 0:00:30]} Ra7 {[%emt 0:00:30]} 28. Qxf7 {[%emt 0:00:30]} Rxb7 {[%emt 0:00:30]} 29. Qxb7 {[%emt 0:00:30]} Qc5 {[%emt 0:00:30]} 30. Bg5 {[%emt 0:00:30]} h6 {[%emt 0:00:30]} 31. Bh4 {[%emt 0:00:30]} a5 {[%emt 0:00:30]} 32. f5 {[%emt 0:00:30]} exf5 {[%emt 0:00:30]} 33. Rxf5 {[%emt 0:00:30]} dxe5 {[%emt 0:00:30]} 34. Bf2 {[%emt 0:00:30]} Rc7 {[%emt 0:00:30]} 35. Bxc5 {[%emt 0:00:30]} Rxb7 {[%emt 0:00:30]} 36. Rxf8+ {[%emt 0:00:30]} Kh7 {[%emt 0:00:30]} 37. Re8 {[%emt 0:00:30]} Rb1+ {[%emt 0:00:30]} 38. Kh2 {[%emt 0:00:30]} Rc1 {[%emt 0:00:30]} 39. Rxe5 {[%emt 0:00:30]} Rxc2 {[%emt 0:00:30]} 40. Be7 {[%emt 0:00:30]} a4 {[%emt 0:00:30]} 41. Bb4 {[%emt 0:00:30]} Rc1 {[%emt 0:00:30]} 42. Re3 {[%emt 0:00:30]} Kg6 {[%emt 0:00:30]} 43. Rc3 {[%emt 0:00:30]} Rxc3 {[%emt 0:00:30]} 44. Bxc3 {[%emt 0:00:30]} Kf5 {[%emt 0:00:30]} 45. Bxg7 {[%emt 0:00:30]} Ke4 {[%emt 0:00:30]} 46. Bxh6 {[%emt 0:00:30]} c3 {[%emt 0:00:30]} 47. h4 {[%emt 0:00:30]} Kd3 {[%emt 0:00:30]} 48. h5 {[%emt 0:00:30]} Kc4 {[%emt 0:00:30]} 49. Bc1 {[%emt 0:00:30]} Kb3 {[%emt 0:00:30]} 50. h6 {[%emt 0:00:30]} Kc2 {[%emt 0:00:30]} 51. Bg5 {[%emt 0:00:30]} 1-0

[Event "XIII Mediterranean Championship 2023"]
[Site "Castell-Platja d Aro"]
[Date "2023.11.09"]
[Round "7.22"]
[White "Pla Almenar, Nel"]
[Black "De Lussac, Estephe"]
[Result "1-0"]
[ECO "B76"]
[WhiteElo "2070"]
[BlackElo "2013"]
[Annotator "NA RC"]
[PlyCount "87"]
[EventDate "2023.10.26"]
[EventType "swiss"]
[EventCountry "ESP"]
[SourceTitle "playchess.com"]
[Source "ChessBase"]
[SourceQuality "1"]
[TimeControl "5400+30"]

1. e4 {[%emt 0:01:24]} c5 {[%emt 0:00:17]} 2. Nf3 {[%emt 0:00:07]} d6 {[%emt 0:00:05]} 3. d4 {[%emt 0:00:06]} cxd4 {[%emt 0:00:03]} 4. Nxd4 {[%emt 0:00:07]} Nf6 {[%emt 0:00:05]} 5. Nc3 {[%emt 0:00:08]} g6 {[%emt 0:00:06]} 6. Be3 {[%emt 0:00:05]} Bg7 {[%emt 0:00:04]} 7. f3 {[%emt 0:00:42]} O-O {[%emt 0:00:05]} 8. Qd2 {[%emt 0:00:05]} Nc6 {[%emt 0:00:04]} 9. O-O-O {[%emt 0:00:06]} d5 {[%emt 0:00:03]} 10. Qe1 {[%emt 1:32:40]} e5 {[%emt 1:34:38]} 11. Nxc6 {[%emt 0:00:00]} bxc6 {[%emt 0:00:00]} 12. exd5 {[%emt 0:00:00]} Nxd5 {[%emt 0:01:00]} 13. Bc4 {[%emt 0:00:00]} Be6 {[%emt 0:00:00]} 14. Bc5 {[%emt 0:02:00]} Re8 {[%emt 0:01:00]} 15. Ne4 {[%emt 0:00:30]} Qc7 {[%emt 0:00:00]} 16. Kb1 {[%emt 0:00:00]} Red8 {[%emt 0:00:00]} 17. g4 {[%emt 0:00:00]} h6 {[%emt 0:01:30]} 18. g5 {[%emt 0:00:00]} h5 {[%emt 0:00:00]} 19. Bb3 {[%emt 0:02:00]} Nf4 {[%emt 0:01:00]} 20. Bd6 {[%emt 0:00:30]} Rxd6 {[%emt 0:00:30]} 21. Nxd6 {[%emt 0:00:00]} Bd5 {[%emt 0:00:00]} 22. Ne4 {[%emt 0:01:00]} Kh8 {[%emt 0:00:00]} 23. Qc3 {[%emt 0:00:30]} Qe7 {[%emt 0:01:30]} 24. Rhe1 {[%emt 0:00:30]} Re8 {[%emt 0:00:30]} 25. h4 {[%emt 0:00:30]} Qe6 {[%emt 0:00:30]} 26. Qc5 {[%emt 0:00:30]} Qh3 {[%emt 0:00:00]} 27. Qf2 {[%emt 0:00:00]} a5 {[%emt 0:01:00]} 28. Rh1 {[%emt 0:00:00]} Qe6 {[%emt 0:00:30]} 29. Qa7 {[%emt 0:00:00]} Ne2 {[%emt 0:00:30]} 30. Qxa5 {[%emt 0:02:00]} Nd4 {[%emt 0:00:00]} 31. Rhf1 {[%emt 0:00:30]} Bxb3 {[%emt 0:00:00]} 32. axb3 {[%emt 0:00:30]} Rb8 {[%emt 0:01:30]} 33. Qc7 {[%emt 0:00:00]} Ra8 {[%emt 0:00:30]} 34. Qb7 {[%emt 0:01:00]} Ra5 {[%emt 0:00:30]} 35. Qb6 {[%emt 0:00:30]} Ra8 {[%emt 0:00:00]} 36. c3 {[%emt 0:00:30]} Nxb3 {[%emt 0:01:00]} 37. Rd8+ {[%emt 0:00:30]} Rxd8 {[%emt 0:00:00]} 38. Qxd8+ {[%emt 0:00:00]} Kh7 {[%emt 0:01:00]} 39. Rd1 {[%emt 0:00:00]} Qc4 {[%emt 0:00:00]} 40. Nf6+ {[%emt 0:00:00]} Bxf6 {[%emt 0:00:00]} 41. gxf6 {[%emt 0:00:00]} Qa4 {[%emt 0:00:00]} 42. Qf8 {[%emt 0:00:00]} Qa1+ {[%emt 0:00:00]} 43. Kc2 {[%emt 0:00:00]} Nd4+ {[%emt 0:00:00]} 44. Rxd4 {[%emt 0:00:00]} 1-0

[Event "XIII Mediterranean Championship 2023"]
[Site "Castell-Platja d Aro"]
[Date "2023.11.09"]
[Round "7.23"]
[White "Mateu Guiu, Esteve"]
[Black "Clot Chico, Arnau"]
[Result "1/2-1/2"]
[ECO "E04"]
[WhiteElo "2075"]
[BlackElo "2008"]
[Annotator "NA RC"]
[PlyCount "34"]
[EventDate "2023.10.26"]
[EventType "swiss"]
[EventCountry "ESP"]
[SourceTitle "playchess.com"]
[Source "ChessBase"]
[SourceQuality "1"]
[TimeControl "5400+30"]

1. d4 {[%emt 0:00:03]} Nf6 {[%emt 0:04:32]} 2. c4 {[%emt 0:00:14]} e6 {[%emt 0:00:16]} 3. Nf3 {[%emt 0:00:13]} d5 {[%emt 0:00:16]} 4. g3 {[%emt 0:00:27]} dxc4 {[%emt 0:00:09]} 5. Bg2 {[%emt 0:00:40]} c6 {[%emt 0:00:16]} 6. Ne5 {[%emt 0:01:04]} Bb4+ {[%emt 0:00:14]} 7. Nc3 {[%emt 0:02:17]} Nd5 {[%emt 0:03:51]} 8. O-O {[%emt 0:10:58]} Nxc3 {[%emt 0:11:02]} 9. bxc3 {[%emt 0:02:18]} Bxc3 {[%emt 0:00:11]} 10. Nxc4 {[%emt 0:07:07]} O-O {[%emt 0:05:13]} 11. Rb1 {[%emt 0:06:26]} Qxd4 {[%emt 0:09:44]} 12. Qb3 {[%emt 0:15:59]} b5 {[%emt 0:06:22]} 13. Nd6 {[%emt 0:06:10]} Qxd6 {[%emt 0:06:16]} 14. Qxc3 {[%emt 0:00:06]} a5 {[%emt 0:03:35]} 15. Bf4 {[%emt 0:43:58]} Qe7 {[%emt 0:46:03]} 16. Rxb5 cxb5 17. Bxa8 {[%emt 0:01:00]} Qa7 {[%emt 0:01:00]} 1/2-1/2

[Event "XIII Mediterranean Championship 2023"]
[Site "Castell-Platja d Aro"]
[Date "2023.11.09"]
[Round "7.24"]
[White "Moran Cabezas, Eric"]
[Black "Vinas Racionero, Josep"]
[Result "1-0"]
[ECO "C55"]
[WhiteElo "1736"]
[BlackElo "2075"]
[Annotator "NA RC"]
[PlyCount "103"]
[EventDate "2023.10.26"]
[EventType "swiss"]
[EventCountry "ESP"]
[SourceTitle "playchess.com"]
[Source "ChessBase"]
[SourceQuality "1"]
[TimeControl "5400+30"]

1. e4 {[%emt 0:00:03]} e5 {[%emt 0:10:30]} 2. Nf3 {[%emt 0:00:14]} Nc6 {[%emt 0:00:07]} 3. Bc4 {[%emt 0:00:22]} Nf6 {[%emt 0:00:08]} 4. d3 {[%emt 0:00:15]} h6 {[%emt 0:01:03]} 5. a4 {[%emt 0:01:36]} d6 {[%emt 0:00:25]} 6. Nbd2 {[%emt 0:02:47]} g5 {[%emt 0:01:03]} 7. O-O {[%emt 0:02:03]} g4 {[%emt 0:01:51]} 8. Ne1 {[%emt 0:01:36]} h5 {[%emt 0:08:13]} 9. c3 {[%emt 0:08:13]} Nh7 {[%emt 0:07:19]} 10. f4 {[%emt 0:19:50]} exf4 {[%emt 0:28:01]} 11. Rxf4 {[%emt 0:00:35]} Ne5 {[%emt 0:01:02]} 12. Qb3 {[%emt 0:28:38]} Bh6 {[%emt 0:03:08]} 13. Bxf7+ {[%emt 0:04:57]} Ke7 {[%emt 0:00:08]} 14. Rf1 {[%emt 0:02:17]} Be3+ {[%emt 0:00:18]} 15. Kh1 {[%emt 0:00:23]} Rf8 {[%emt 0:00:08]} 16. Nc4 {[%emt 0:11:04]} Nxc4 {[%emt 0:03:37]} 17. Qxc4 {[%emt 0:01:13]} Bxc1 {[%emt 0:00:13]} 18. Nc2 {[%emt 0:01:02]} Ng5 {[%emt 0:00:45]} 19. Raxc1 {[%emt 0:04:02]} Rxf7 {[%emt 0:00:10]} 20. Qd5 {[%emt 0:01:49]} Qg8 {[%emt 0:05:58]} 21. Rxf7+ {[%emt 0:01:20]} Nxf7 {[%emt 0:00:10]} 22. Rf1 {[%emt 0:00:10]} Qg6 {[%emt 0:06:07]} 23. Ne3 {[%emt 0:01:07]} c6 {[%emt 0:02:30]} 24. Qb3 {[%emt 0:01:01]} b6 {[%emt 0:01:12]} 25. d4 {[%emt 0:00:51]} h4 {[%emt 0:01:58]} 26. Qc4 {[%emt 0:01:10]} Bd7 {[%emt 0:03:34]} 27. Nf5+ {[%emt 0:00:40]} Kd8 {[%emt 0:01:29]} 28. Nxh4 {[%emt 0:01:51]} Qe6 {[%emt 0:00:42]} 29. d5 {[%emt 0:00:34]} Qe8 {[%emt 0:03:17]} 30. dxc6 {[%emt 0:01:46]} Be6 {[%emt 0:01:04]} 31. Qd4 {[%emt 0:01:10]} Qxc6 {[%emt 0:00:29]} 32. Qf6+ {[%emt 0:00:37]} Kd7 {[%emt 0:00:54]} 33. Ng6 {[%emt 0:00:04]} Re8 {[%emt 0:00:16]} 34. Re1 {[%emt 0:01:29]} Qxa4 {[%emt 0:04:53]} 35. e5 {[%emt 0:00:29]} d5 {[%emt 0:00:07]} 36. Nf4 {[%emt 0:00:35]} Qc6 {[%emt 0:00:05]} 37. Qg7 {[%emt 0:00:05]} a5 {[%emt 0:01:12]} 38. Nh5 {[%emt 0:00:06]} Kc8 {[%emt 0:01:29]} 39. Nf6 {[%emt 0:00:13]} Re7 {[%emt 0:00:21]} 40. Qf8+ {[%emt 0:00:26]} Re8 {[%emt 0:01:48]} 41. Qxe8+ {[%emt 0:00:56]} Qxe8 {[%emt 0:00:05]} 42. Nxe8 {[%emt 0:00:01]} Kd7 {[%emt 0:00:17]} 43. Ng7 {[%emt 0:00:09]} Ng5 {[%emt 0:00:30]} 44. Nh5 {[%emt 0:01:15]} Ne4 {[%emt 0:00:27]} 45. Nf6+ {[%emt 0:00:19]} Nxf6 {[%emt 0:00:19]} 46. exf6 {[%emt 0:00:02]} b5 {[%emt 0:01:07]} 47. Kg1 {[%emt 0:00:27]} b4 {[%emt 0:00:06]} 48. cxb4 {[%emt 0:00:17]} axb4 {[%emt 0:00:07]} 49. Kf2 {[%emt 0:00:13]} b3 {[%emt 0:00:15]} 50. Ke3 {[%emt 0:01:01]} Ke8 {[%emt 0:00:13]} 51. Kf4 {[%emt 0:00:47]} Kf7 {[%emt 0:00:02]} 52. Kg5 {[%emt 0:00:17]} 1-0

[Event "XIII Mediterranean Championship 2023"]
[Site "Castell-Platja d Aro"]
[Date "2023.11.09"]
[Round "7.26"]
[White "Vinolas Anglada, Laura"]
[Black "Vidal Traves, Marti"]
[Result "1-0"]
[ECO "C10"]
[WhiteElo "1884"]
[BlackElo "1631"]
[Annotator "NA RC"]
[PlyCount "79"]
[EventDate "2023.10.26"]
[EventType "swiss"]
[EventCountry "ESP"]
[SourceTitle "playchess.com"]
[Source "ChessBase"]
[SourceQuality "1"]
[TimeControl "5400+30"]

1. e4 {[%emt 1:31:00]} e6 {[%emt 1:31:00]} 2. d4 {[%emt 0:00:30]} d5 {[%emt 0:00:30]} 3. Nc3 {[%emt 0:00:30]} dxe4 {[%emt 0:00:30]} 4. Nxe4 {[%emt 0:00:30]} Nd7 {[%emt 0:00:30]} 5. Nf3 {[%emt 0:00:30]} Ngf6 {[%emt 0:00:30]} 6. Nxf6+ {[%emt 0:00:30]} Nxf6 {[%emt 0:00:30]} 7. Bd3 {[%emt 0:00:30]} c5 {[%emt 0:00:30]} 8. O-O {[%emt 0:00:30]} Bd7 {[%emt 0:00:30]} 9. Re1 {[%emt 0:00:30]} Bc6 {[%emt 0:00:30]} 10. Qe2 {[%emt 0:00:30]} cxd4 {[%emt 0:00:30]} 11. Ne5 {[%emt 0:00:30]} Be7 {[%emt 0:00:30]} 12. Bc4 {[%emt 0:00:30]} Bd5 {[%emt 0:00:30]} 13. Bb5+ {[%emt 0:00:30]} Kf8 {[%emt 0:00:30]} 14. Bf4 {[%emt 0:00:30]} a6 {[%emt 0:00:30]} 15. Bd3 {[%emt 0:00:30]} Nd7 {[%emt 0:00:30]} 16. Nf3 {[%emt 0:00:30]} Nc5 {[%emt 0:00:30]} 17. Rad1 {[%emt 0:00:30]} Nxd3 {[%emt 0:00:30]} 18. Qxd3 {[%emt 0:00:30]} Bxf3 {[%emt 0:00:30]} 19. Qxf3 {[%emt 0:00:30]} Qb6 {[%emt 0:00:30]} 20. Be5 {[%emt 0:00:30]} Rd8 {[%emt 0:00:30]} 21. Qg3 {[%emt 0:00:30]} Bf6 {[%emt 0:00:30]} 22. Bc7 {[%emt 0:00:30]} Qc5 {[%emt 0:00:30]} 23. Bxd8 {[%emt 0:00:30]} Bxd8 {[%emt 0:00:30]} 24. c3 {[%emt 0:00:30]} g6 {[%emt 0:00:30]} 25. Rxd4 {[%emt 0:00:30]} Kg7 {[%emt 0:00:30]} 26. Qf3 {[%emt 0:00:30]} Rf8 {[%emt 0:00:30]} 27. Qxb7 {[%emt 0:00:30]} Bb6 {[%emt 0:00:30]} 28. Qf3 {[%emt 0:00:30]} e5 {[%emt 0:00:30]} 29. Rd5 {[%emt 0:00:30]} Qc4 {[%emt 0:00:30]} 30. b3 {[%emt 0:00:30]} Qc6 {[%emt 0:00:30]} 31. Rdxe5 {[%emt 0:00:30]} Qxf3 {[%emt 0:00:30]} 32. gxf3 {[%emt 0:00:30]} Rd8 {[%emt 0:00:30]} 33. c4 {[%emt 0:00:30]} Rd2 {[%emt 0:00:30]} 34. R5e2 {[%emt 0:00:30]} Rd3 {[%emt 0:00:30]} 35. Kg2 {[%emt 0:00:30]} h5 {[%emt 0:00:30]} 36. Rc2 {[%emt 0:00:30]} h4 {[%emt 0:00:30]} 37. h3 {[%emt 0:00:30]} Kf6 {[%emt 0:00:30]} 38. c5 {[%emt 0:00:30]} Ba5 {[%emt 0:00:30]} 39. Re4 {[%emt 0:00:30]} Kg5 {[%emt 0:00:30]} 40. c6 {[%emt 0:00:30]} 1-0

[Event "XIII Mediterranean Championship 2023"]
[Site "Castell-Platja d Aro"]
[Date "2023.11.09"]
[Round "7.27"]
[White "Diaz Comas, Jordi"]
[Black "Lunin Bohomolets, Iliia"]
[Result "1/2-1/2"]
[ECO "A35"]
[WhiteElo "1837"]
[BlackElo "1850"]
[Annotator "NA RC"]
[PlyCount "91"]
[EventDate "2023.10.26"]
[EventType "swiss"]
[EventCountry "ESP"]
[SourceTitle "playchess.com"]
[Source "ChessBase"]
[SourceQuality "1"]
[TimeControl "5400+30"]

1. Nf3 {[%emt 0:01:10]} c5 {[%emt 0:01:12]} 2. c4 {[%emt 0:00:30]} Nf6 {[%emt 0:01:04]} 3. Nc3 {[%emt 0:00:47]} g6 {[%emt 0:00:15]} 4. e3 {[%emt 0:01:46]} Nc6 {[%emt 0:01:22]} 5. a3 {[%emt 0:00:21]} Bg7 {[%emt 0:00:41]} 6. Qc2 {[%emt 0:00:42]} O-O {[%emt 0:02:03]} 7. b3 {[%emt 0:00:28]} d5 {[%emt 0:06:53]} 8. cxd5 {[%emt 0:01:07]} Nxd5 {[%emt 0:00:04]} 9. Bb2 {[%emt 0:00:11]} e5 {[%emt 0:03:54]} 10. Nxd5 {[%emt 0:13:08]} Qxd5 {[%emt 0:00:08]} 11. Bc4 {[%emt 0:00:02]} Qd6 {[%emt 0:00:51]} 12. O-O {[%emt 0:01:11]} Bf5 {[%emt 0:08:40]} 13. Qc3 {[%emt 0:04:40]} a6 {[%emt 0:04:31]} 14. Nh4 {[%emt 0:01:29]} Be4 {[%emt 0:06:29]} 15. d3 {[%emt 0:08:19]} Bd5 {[%emt 0:07:12]} 16. Rac1 {[%emt 1:02:39]} b6 {[%emt 0:01:33]} 17. f4 {[%emt 0:00:00]} f5 {[%emt 0:05:17]} 18. Nf3 {[%emt 0:00:00]} Rfe8 {[%emt 0:01:38]} 19. e4 {[%emt 0:00:00]} Bxc4 {[%emt 0:06:06]} 20. Qxc4+ {[%emt 0:00:00]} Qe6 {[%emt 0:00:18]} 21. exf5 {[%emt 0:00:00]} gxf5 {[%emt 0:02:08]} 22. fxe5 {[%emt 0:00:00]} Qxc4 {[%emt 0:00:30]} 23. dxc4 {[%emt 0:00:00]} Nxe5 {[%emt 0:39:11]} 24. Nxe5 {[%emt 0:00:00]} Bxe5 {[%emt 0:00:00]} 25. Bxe5 {[%emt 0:00:00]} Rxe5 {[%emt 0:00:00]} 26. Rce1 {[%emt 0:00:00]} Rae8 {[%emt 0:00:00]} 27. Kf2 {[%emt 0:00:00]} Kf7 {[%emt 0:00:00]} 28. Rxe5 {[%emt 0:00:00]} Rxe5 {[%emt 0:00:00]} 29. Rd1 {[%emt 0:00:00]} Re6 {[%emt 0:03:00]} 30. Rd7+ {[%emt 0:00:00]} Kg6 {[%emt 0:00:00]} 31. Kf3 {[%emt 0:00:00]} h6 {[%emt 0:00:00]} 32. g3 {[%emt 0:00:00]} Kf6 {[%emt 0:00:00]} 33. Kf4 {[%emt 0:00:00]} Re4+ {[%emt 0:00:00]} 34. Kf3 {[%emt 0:00:00]} Re6 {[%emt 0:00:00]} 35. Rd5 {[%emt 0:00:00]} a5 {[%emt 0:03:00]} 36. Rd3 {[%emt 0:00:00]} h5 {[%emt 0:00:00]} 37. Re3 {[%emt 0:00:00]} Rd6 {[%emt 0:00:00]} 38. Re8 {[%emt 0:00:00]} Rd3+ {[%emt 0:00:00]} 39. Re3 {[%emt 0:00:00]} Rd2 {[%emt 0:00:00]} 40. h4 {[%emt 0:12:00]} Rd1 {[%emt 0:00:00]} 41. Ke2 {[%emt 0:00:00]} Rd4 {[%emt 0:00:00]} 42. Rd3 {[%emt 0:00:00]} Re4+ {[%emt 0:00:00]} 43. Kf3 {[%emt 0:00:00]} Re6 {[%emt 0:00:00]} 44. Rd8 {[%emt 0:02:00]} Kg6 {[%emt 0:04:30]} 45. Rg8+ {[%emt 0:00:30]} Kf7 {[%emt 0:00:30]} 46. Rg5 1/2-1/2

[Event "XIII Mediterranean Championship 2023"]
[Site "Castell-Platja d Aro"]
[Date "2023.11.09"]
[Round "7.28"]
[White "Vidal Palou, Jordi"]
[Black "Parramon Arimany, Marc"]
[Result "0-1"]
[ECO "D02"]
[WhiteElo "1620"]
[BlackElo "1834"]
[Annotator "NA RC"]
[PlyCount "34"]
[EventDate "2023.10.26"]
[EventType "swiss"]
[EventCountry "ESP"]
[SourceTitle "playchess.com"]
[Source "ChessBase"]
[SourceQuality "1"]
[TimeControl "5400+30"]

1. d4 d5 2. Bf4 Nf6 3. e3 c5 4. c3 Nc6 5. Bd3 e6 6. Nf3 Bd6 7. Bg3 O-O 8. Nbd2 Re8 9. Ne5 Bxe5 10. dxe5 Nd7 11. Nf3 f6 12. Nh4 Ndxe5 13. Bc2 Bd7 14. f4 Nc4 15. Bxh7+ Kxh7 16. Qh5+ Kg8 17. Qf7+ Kxf7 0-1

[Event "XIII Mediterranean Championship 2023"]
[Site "Castell-Platja d Aro"]
[Date "2023.11.09"]
[Round "7.29"]
[White "Giro Castellet, Esteve"]
[Black "Vinals Rioja, Jaume"]
[Result "0-1"]
[ECO "B13"]
[WhiteElo "1633"]
[BlackElo "1838"]
[Annotator "NA RC"]
[PlyCount "62"]
[EventDate "2023.10.26"]
[EventType "swiss"]
[EventCountry "ESP"]
[SourceTitle "playchess.com"]
[Source "ChessBase"]
[SourceQuality "1"]
[TimeControl "5400+30"]

1. d4 {[%emt 1:31:00]} d5 {[%emt 1:31:00]} 2. Bf4 {[%emt 0:00:30]} e6 {[%emt 0:00:30]} 3. e3 {[%emt 0:00:30]} Nf6 {[%emt 0:00:30]} 4. Nf3 {[%emt 0:00:30]} c5 {[%emt 0:00:30]} 5. c3 {[%emt 0:00:30]} Nc6 {[%emt 0:00:30]} 6. Nbd2 {[%emt 0:00:30]} Bd6 {[%emt 0:00:30]} 7. Bxd6 {[%emt 0:00:30]} Qxd6 {[%emt 0:00:30]} 8. Bd3 {[%emt 0:00:30]} b6 {[%emt 0:00:30]} 9. O-O {[%emt 0:00:30]} O-O {[%emt 0:00:30]} 10. Re1 {[%emt 0:00:30]} cxd4 {[%emt 0:00:30]} 11. exd4 {[%emt 0:00:30]} Bb7 {[%emt 0:00:30]} 12. Ne5 {[%emt 0:00:30]} Ne7 {[%emt 0:00:30]} 13. Qc2 {[%emt 0:00:30]} Ng6 {[%emt 0:00:30]} 14. Bxg6 {[%emt 0:00:30]} hxg6 {[%emt 0:00:30]} 15. Qd3 {[%emt 0:00:30]} Rfe8 {[%emt 0:00:30]} 16. Qh3 {[%emt 0:00:30]} Qe7 {[%emt 0:00:30]} 17. f4 {[%emt 0:00:30]} Ne4 {[%emt 0:00:30]} 18. Ndf3 {[%emt 0:00:30]} Qf6 {[%emt 0:00:30]} 19. Rxe4 {[%emt 0:00:30]} dxe4 {[%emt 0:00:30]} 20. Ng5 {[%emt 0:00:30]} Qf5 {[%emt 0:00:30]} 21. g4 {[%emt 0:00:30]} Qxf4 {[%emt 0:00:30]} 22. Rf1 {[%emt 0:00:30]} Qxg5 {[%emt 0:00:30]} 23. Nxf7 {[%emt 0:00:30]} Qf6 {[%emt 0:00:30]} 24. Qh8+ {[%emt 0:00:30]} Kxf7 {[%emt 0:00:30]} 25. Rxf6+ {[%emt 0:00:30]} Kxf6 {[%emt 0:00:30]} 26. Qh4+ {[%emt 0:00:30]} Kf7 {[%emt 0:00:30]} 27. Qg3 {[%emt 0:00:30]} Bd5 {[%emt 0:00:30]} 28. c4 {[%emt 0:00:30]} e3 {[%emt 0:00:30]} 29. cxd5 {[%emt 0:00:30]} exd5 {[%emt 0:00:30]} 30. Kf1 {[%emt 0:00:30]} Kg8 {[%emt 0:00:30]} 31. Ke2 {[%emt 0:00:30]} Rac8 {[%emt 0:00:30]} 0-1

[Event "XIII Mediterranean Championship 2023"]
[Site "Castell-Platja d Aro"]
[Date "2023.11.09"]
[Round "7.30"]
[White "Hernando Rodrigo, Lourdes"]
[Black "Leon Escoda, Manel"]
[Result "1-0"]
[ECO "A57"]
[WhiteElo "1625"]
[BlackElo "1682"]
[Annotator "NA RC"]
[PlyCount "83"]
[EventDate "2023.10.26"]
[EventType "swiss"]
[EventCountry "ESP"]
[SourceTitle "playchess.com"]
[Source "ChessBase"]
[SourceQuality "1"]
[TimeControl "5400+30"]

1. d4 {[%emt 1:31:00]} c5 {[%emt 1:31:00]} 2. d5 {[%emt 0:00:30]} Nf6 3. c4 {[%emt 0:00:30]} b5 {[%emt 0:01:00]} 4. cxb5 {[%emt 0:00:30]} a6 {[%emt 0:00:30]} 5. Nc3 {[%emt 0:00:30]} axb5 {[%emt 0:00:30]} 6. e4 {[%emt 0:00:30]} b4 {[%emt 0:00:30]} 7. Nb5 {[%emt 0:00:30]} d6 {[%emt 0:00:30]} 8. Bf4 {[%emt 0:00:30]} g6 {[%emt 0:00:30]} 9. Qd2 {[%emt 0:00:30]} Nbd7 {[%emt 0:00:30]} 10. Nf3 {[%emt 0:00:30]} Nxe4 {[%emt 0:00:30]} 11. Qe2 {[%emt 0:00:30]} Ndf6 {[%emt 0:00:30]} 12. Ng5 {[%emt 0:00:30]} Bf5 {[%emt 0:00:30]} 13. Nxe4 {[%emt 0:00:30]} Bxe4 {[%emt 0:00:30]} 14. f3 {[%emt 0:00:30]} Bg7 {[%emt 0:00:30]} 15. fxe4 {[%emt 0:00:30]} O-O {[%emt 0:00:30]} 16. Qc2 {[%emt 0:00:30]} Qb6 {[%emt 0:00:30]} 17. Bc4 {[%emt 0:00:30]} Nd7 {[%emt 0:00:30]} 18. Be3 {[%emt 0:00:30]} Ra5 {[%emt 0:00:30]} 19. Qe2 {[%emt 0:00:30]} Ne5 {[%emt 0:00:30]} 20. a4 {[%emt 0:00:30]} bxa3 {[%emt 0:00:30]} 21. Nxa3 {[%emt 0:00:30]} Rxa3 {[%emt 0:00:30]} 22. Rxa3 {[%emt 0:00:30]} Qb4+ {[%emt 0:00:30]} 23. Rc3 {[%emt 0:00:30]} Nxc4 {[%emt 0:00:30]} 24. Qxc4 {[%emt 0:00:30]} Bxc3+ {[%emt 0:00:30]} 25. Qxc3 {[%emt 0:00:30]} Rb8 {[%emt 0:00:30]} 26. O-O {[%emt 0:00:30]} Qxb2 {[%emt 0:00:30]} 27. Qxb2 {[%emt 0:00:30]} Rxb2 {[%emt 0:00:30]} 28. Re1 {[%emt 0:00:30]} f6 {[%emt 0:00:30]} 29. Kf1 {[%emt 0:00:30]} Kf7 {[%emt 0:00:30]} 30. Re2 {[%emt 0:00:30]} Rb3 {[%emt 0:00:30]} 31. Kf2 {[%emt 0:00:30]} e6 {[%emt 0:00:30]} 32. h3 {[%emt 0:00:30]} f5 {[%emt 0:00:30]} 33. exf5 {[%emt 0:00:30]} exf5 {[%emt 0:00:30]} 34. Bf4 {[%emt 0:00:30]} Rd3 {[%emt 0:00:30]} 35. Rd2 {[%emt 0:00:30]} Rb3 {[%emt 0:00:30]} 36. Bxd6 c4 {[%emt 0:00:30]} 37. Be5 {[%emt 0:01:00]} Rb5 {[%emt 0:00:30]} 38. d6 {[%emt 0:00:30]} c3 {[%emt 0:00:30]} 39. d7 {[%emt 0:00:30]} Rb2 {[%emt 0:00:30]} 40. Rxb2 {[%emt 0:00:30]} cxb2 {[%emt 0:00:30]} 41. d8=Q {[%emt 0:00:30]} b1=Q {[%emt 0:00:30]} 42. Qd7+ {[%emt 0:00:30]} 1-0